[Event "*** Titled Tuesday 3|2 Blitz"]
[Site "Chess.com"]
[Date "2015.03.03"]
[Round "2"]
[White "EltajSafarli"]
[Black "Konavets"]
[Result "1-0"]
[WhiteElo "2659"]
[BlackElo "2360"]
[TimeControl "180+2"]
[EndTime "11:19:30 PST"]
[Termination "EltajSafarli won by resignation"]

1. e4 {[%clk 0:03:00]} 1... e5 {[%clk 0:02:49.1]} 2. Nf3 {[%clk 0:03:00.5]} 2...
Nc6 {[%clk 0:02:50.6]} 3. Bb5 {[%clk 0:03:00.2]} 3... a6 {[%clk 0:02:52.1]} 4.
Ba4 {[%clk 0:02:59.9]} 4... Nge7 {[%clk 0:02:53.5]} 5. O-O {[%clk 0:02:59.9]}
5... b5 {[%clk 0:02:54.6]} 6. Bb3 {[%clk 0:03:00.7]} 6... Ng6 {[%clk 0:02:55.9]}
7. c3 {[%clk 0:03:01.7]} 7... d6 {[%clk 0:02:56.1]} 8. d4 {[%clk 0:03:02]} 8...
Be7 {[%clk 0:02:57.6]} 9. h3 {[%clk 0:03:02.7]} 9... O-O {[%clk 0:02:58.4]} 10.
Re1 {[%clk 0:03:03.2]} 10... Bb7 {[%clk 0:02:58.7]} 11. Nbd2 {[%clk 0:03:03.6]}
11... Kh8 {[%clk 0:03:00.1]} 12. Nf1 {[%clk 0:03:03.5]} 12... Bf6 {[%clk
0:03:00.1]} 13. Ng3 {[%clk 0:03:03.6]} 13... Qd7 {[%clk 0:03:00.5]} 14. Nh5
{[%clk 0:03:00.5]} 14... Be7 {[%clk 0:03:01.8]} 15. Bc2 {[%clk 0:02:57.8]} 15...
Rae8 {[%clk 0:03:02.8]} 16. g4 {[%clk 0:02:44.2]} 16... exd4 {[%clk 0:03:02.9]}
17. cxd4 {[%clk 0:02:43.8]} 17... Nb4 {[%clk 0:03:04.2]} 18. Bb1 {[%clk
0:02:45.1]} 18... c5 {[%clk 0:02:45.1]} 19. d5 {[%clk 0:02:42.4]} 19... a5
{[%clk 0:02:42.7]} 20. a3 {[%clk 0:02:37.2]} 20... Na6 {[%clk 0:02:43.3]} 21.
Bd2 {[%clk 0:02:39.1]} 21... a4 {[%clk 0:02:42.6]} 22. Bc3 {[%clk 0:02:25.2]}
22... f6 {[%clk 0:02:43.3]} 23. Bd3 {[%clk 0:02:17.3]} 23... Bd8 {[%clk
0:02:42.3]} 24. Qd2 {[%clk 0:02:11.8]} 24... c4 {[%clk 0:02:38.8]} 25. Bc2
{[%clk 0:02:11.8]} 25... Nc5 {[%clk 0:02:40.1]} 26. Nd4 {[%clk 0:02:10.7]} 26...
Ne5 {[%clk 0:02:39.4]} 27. Re3 {[%clk 0:02:01.7]} 27... g6 {[%clk 0:02:28.7]}
28. Nf4 {[%clk 0:01:57.7]} 28... Bb6 {[%clk 0:02:29.8]} 29. Nfe6 {[%clk
0:01:48.4]} 29... Nxe6 {[%clk 0:02:29.9]} 30. dxe6 {[%clk 0:01:50.3]} 30... Qg7
{[%clk 0:02:03]} 31. Rd1 {[%clk 0:01:49.3]} 31... Bxd4 {[%clk 0:02:02.5]} 32.
Qxd4 {[%clk 0:01:48.5]} 32... Rxe6 {[%clk 0:02:03.7]} 33. f4 {[%clk 0:01:42.5]}
33... Nd7 {[%clk 0:02:04.6]} 34. Bb4 {[%clk 0:01:30.9]} 34... Rfe8 {[%clk
0:02:02.1]} 35. Bxd6 {[%clk 0:01:29.2]} 35... f5 {[%clk 0:01:59.2]} 36. Qxg7+
{[%clk 0:01:23.6]} 36... Kxg7 {[%clk 0:02:01.1]} 37. e5 {[%clk 0:01:25.4]} 37...
fxg4 {[%clk 0:01:44.4]} 38. hxg4 {[%clk 0:01:27.3]} 38... Nb6 {[%clk 0:01:44.7]}
39. f5 {[%clk 0:01:12.3]} 39... gxf5 {[%clk 0:01:46.6]} 40. gxf5 {[%clk
0:01:14.2]} 40... Rh6 {[%clk 0:01:48]} 41. e6 {[%clk 0:01:09.8]} 41... Rh1+
{[%clk 0:01:46.1]} 42. Kf2 {[%clk 0:01:10.8]} 42... Rh2+ {[%clk 0:01:47.5]} 43.
Bxh2 {[%clk 0:01:02.1]} 1-0

[Event "*** Titled Tuesday 3|2 Blitz"]
[Site "Chess.com"]
[Date "2015.03.03"]
[Round "2"]
[White "Aragon"]
[Black "Mazetovic"]
[Result "0-1"]
[WhiteElo "1966"]
[BlackElo "2338"]
[TimeControl "180+2"]
[EndTime "11:19:52 PST"]
[Termination "Mazetovic won by resignation"]

1. e4 {[%clk 0:03:00]} 1... c5 {[%clk 0:02:55.6]} 2. Nf3 {[%clk 0:03:00.2]} 2...
Nc6 {[%clk 0:02:53.7]} 3. b4 {[%clk 0:03:00.4]} 3... cxb4 {[%clk 0:02:48.6]} 4.
d4 {[%clk 0:03:00.5]} 4... g6 {[%clk 0:02:44]} 5. d5 {[%clk 0:02:59]} 5... Bg7
{[%clk 0:02:37.1]} 6. c3 {[%clk 0:02:59.3]} 6... Nb8 {[%clk 0:02:09.8]} 7. Be3
{[%clk 0:02:34.5]} 7... d6 {[%clk 0:01:52.4]} 8. Bd4 {[%clk 0:02:27.9]} 8... Nf6
{[%clk 0:01:50.6]} 9. Bd3 {[%clk 0:02:25.1]} 9... bxc3 {[%clk 0:01:50.2]} 10.
O-O {[%clk 0:02:24.1]} 10... O-O {[%clk 0:01:51.5]} 11. Nxc3 {[%clk 0:02:16.8]}
11... Bg4 {[%clk 0:01:52.1]} 12. Qb3 {[%clk 0:02:14.8]} 12... b6 {[%clk
0:01:44.1]} 13. Rfe1 {[%clk 0:01:45.3]} 13... Bxf3 {[%clk 0:01:43.6]} 14. gxf3
{[%clk 0:01:45.8]} 14... Nfd7 {[%clk 0:01:41.6]} 15. Bxg7 {[%clk 0:01:45.8]}
15... Kxg7 {[%clk 0:01:41.5]} 16. Bb5 {[%clk 0:01:43.6]} 16... Nc5 {[%clk
0:01:41.2]} 17. Qc2 {[%clk 0:01:41.3]} 17... Nbd7 {[%clk 0:01:41.3]} 18. Ne2
{[%clk 0:01:39.8]} 18... Ne5 {[%clk 0:01:39]} 19. Kg2 {[%clk 0:01:38.5]} 19...
Rc8 {[%clk 0:01:39.3]} 20. Qd2 {[%clk 0:01:27.5]} 20... a6 {[%clk 0:01:38.1]}
21. Bc6 {[%clk 0:01:25]} 21... Nxc6 {[%clk 0:01:36.8]} 22. dxc6 {[%clk
0:01:25.6]} 22... Rxc6 {[%clk 0:01:38.3]} 23. Nd4 {[%clk 0:01:26]} 23... Rc8
{[%clk 0:01:38.4]} 24. Rab1 {[%clk 0:01:23.1]} 24... b5 {[%clk 0:01:37.9]} 25.
f4 {[%clk 0:01:20.3]} 25... e5 {[%clk 0:01:37.8]} 26. Nf3 {[%clk 0:01:09.6]}
26... Ne6 {[%clk 0:01:35.9]} 27. fxe5 {[%clk 0:01:08.3]} 27... dxe5 {[%clk
0:01:36.9]} 28. Qxd8 {[%clk 0:01:05.1]} 28... Rfxd8 {[%clk 0:01:37.4]} 29. Nxe5
{[%clk 0:01:07]} 29... Rd2 {[%clk 0:01:35]} 30. a4 {[%clk 0:01:03.7]} 30... bxa4
{[%clk 0:01:27]} 31. Rb7 {[%clk 0:01:02.3]} 31... Rc7 {[%clk 0:01:28]} 32. Rxc7
{[%clk 0:00:58.5]} 32... Nxc7 {[%clk 0:01:28.5]} 33. Ra1 {[%clk 0:01:00.4]}
33... Rd4 {[%clk 0:01:24.1]} 34. f3 {[%clk 0:01:00.5]} 34... Nb5 {[%clk
0:01:23.3]} 35. Nc6 {[%clk 0:00:58.2]} 35... Rd2+ {[%clk 0:01:20.2]} 36. Kg3
{[%clk 0:00:59.1]} 36... a3 {[%clk 0:01:21.5]} 37. Nb4 {[%clk 0:00:55.3]} 37...
Rb2 {[%clk 0:01:21.4]} 38. Nxa6 {[%clk 0:00:47.5]} 38... a2 {[%clk 0:01:19.1]}
39. Nc5 {[%clk 0:00:42.4]} 39... Nc3 {[%clk 0:01:19.5]} 0-1

[Event "*** Titled Tuesday 3|2 Blitz"]
[Site "Chess.com"]
[Date "2015.03.03"]
[Round "2"]
[White "FabianEnglert"]
[Black "AungTZ"]
[Result "1/2-1/2"]
[WhiteElo "2241"]
[BlackElo "2079"]
[TimeControl "180+2"]
[EndTime "11:20:29 PST"]
[Termination "Game drawn by repetition"]

1. Nf3 {[%clk 0:03:00]} 1... d5 {[%clk 0:02:58.2]} 2. c4 {[%clk 0:03:01]} 2...
e6 {[%clk 0:02:59.3]} 3. g3 {[%clk 0:03:01.9]} 3... Nf6 {[%clk 0:03:00.2]} 4.
Bg2 {[%clk 0:03:03.1]} 4... Be7 {[%clk 0:03:01.5]} 5. O-O {[%clk 0:03:04.1]}
5... O-O {[%clk 0:03:02.4]} 6. b3 {[%clk 0:03:05]} 6... c5 {[%clk 0:03:02.8]} 7.
e3 {[%clk 0:03:05.6]} 7... Nc6 {[%clk 0:03:03.7]} 8. Bb2 {[%clk 0:03:06.6]} 8...
b6 {[%clk 0:03:03.3]} 9. Qe2 {[%clk 0:03:06]} 9... Bb7 {[%clk 0:03:03.8]} 10.
Rd1 {[%clk 0:03:06.6]} 10... Qc7 {[%clk 0:02:44.3]} 11. cxd5 {[%clk 0:02:57.2]}
11... Nxd5 {[%clk 0:02:42.5]} 12. d4 {[%clk 0:02:54.7]} 12... Rfd8 {[%clk
0:02:42.3]} 13. Nc3 {[%clk 0:02:51.9]} 13... Nxc3 {[%clk 0:02:37.8]} 14. Bxc3
{[%clk 0:02:52.4]} 14... Bf6 {[%clk 0:02:39]} 15. Rac1 {[%clk 0:02:48.9]} 15...
cxd4 {[%clk 0:02:39.1]} 16. Nxd4 {[%clk 0:02:35.2]} 16... Bxd4 {[%clk
0:02:02.4]} 17. Bxd4 {[%clk 0:02:32.9]} 17... Nxd4 {[%clk 0:02:02.7]} 18. exd4
{[%clk 0:02:14.2]} 18... Qd7 {[%clk 0:01:57.9]} 19. h4 {[%clk 0:01:53]} 19...
Bxg2 {[%clk 0:01:54.4]} 20. Kxg2 {[%clk 0:01:54.9]} 20... Rac8 {[%clk
0:01:55.1]} 21. Rxc8 {[%clk 0:01:38.3]} 21... Rxc8 {[%clk 0:01:49.3]} 22. Qe4
{[%clk 0:01:26.8]} 22... Rd8 {[%clk 0:01:42.9]} 23. Rd2 {[%clk 0:01:16.2]} 23...
f5 {[%clk 0:01:38.6]} 24. Qe5 {[%clk 0:01:11.1]} 24... Kf7 {[%clk 0:01:32.1]}
25. h5 {[%clk 0:01:10.3]} 25... Qb7+ {[%clk 0:01:30.5]} 26. Kh2 {[%clk
0:01:09.5]} 26... Rd5 {[%clk 0:01:30.9]} 27. Qf4 {[%clk 0:01:06.9]} 27... Qe7
{[%clk 0:01:21.5]} 28. Rc2 {[%clk 0:01:03.1]} 28... Rd7 {[%clk 0:01:16.7]} 29.
Rc6 {[%clk 0:01:00.6]} 29... Qf6 {[%clk 0:01:07.9]} 30. Rc7 {[%clk 0:00:32.7]}
30... Qe7 {[%clk 0:01:03.7]} 31. Rc8 {[%clk 0:00:26.9]} 31... Rd8 {[%clk
0:00:43.9]} 32. Rc7 {[%clk 0:00:16.7]} 32... Rd7 {[%clk 0:00:44.9]} 33. Rc8
{[%clk 0:00:17.6]} 33... Rd8 {[%clk 0:00:37.3]} 34. Rc7 {[%clk 0:00:15.5]} 34...
Rd7 {[%clk 0:00:38.2]} 35. Rc8 {[%clk 0:00:14]} 1/2-1/2

[Event "*** Titled Tuesday 3|2 Blitz"]
[Site "Chess.com"]
[Date "2015.03.03"]
[Round "2"]
[White "Spas_Kozhuharov"]
[Black "wonderfultime"]
[Result "0-1"]
[WhiteElo "2401"]
[BlackElo "2538"]
[TimeControl "180+2"]
[EndTime "11:20:35 PST"]
[Termination "wonderfultime won by resignation"]

1. d4 {[%clk 0:03:00]} 1... d5 {[%clk 0:02:57.6]} 2. c4 {[%clk 0:03:00.4]} 2...
c6 {[%clk 0:02:58.5]} 3. Nf3 {[%clk 0:03:01.3]} 3... Nf6 {[%clk 0:02:59.5]} 4.
Nc3 {[%clk 0:03:02.4]} 4... dxc4 {[%clk 0:03:00.9]} 5. e3 {[%clk 0:03:03.6]}
5... b5 {[%clk 0:03:01.5]} 6. a4 {[%clk 0:03:05.2]} 6... b4 {[%clk 0:03:01.1]}
7. Na2 {[%clk 0:03:06.7]} 7... a5 {[%clk 0:02:53.5]} 8. Bxc4 {[%clk 0:03:07.5]}
8... e6 {[%clk 0:02:55.4]} 9. O-O {[%clk 0:03:07.8]} 9... Be7 {[%clk 0:02:56.7]}
10. Qe2 {[%clk 0:03:09.4]} 10... O-O {[%clk 0:02:57.9]} 11. Rd1 {[%clk
0:03:11.3]} 11... Ba6 {[%clk 0:02:59]} 12. Bxa6 {[%clk 0:03:08.3]} 12... Nxa6
{[%clk 0:03:00.9]} 13. Bd2 {[%clk 0:03:09.5]} 13... Qd5 {[%clk 0:02:53.2]} 14.
Nc1 {[%clk 0:03:08.7]} 14... Rfd8 {[%clk 0:02:54]} 15. Nd3 {[%clk 0:03:05.1]}
15... c5 {[%clk 0:02:55.3]} 16. Be1 {[%clk 0:03:02.2]} 16... Qh5 {[%clk
0:01:52.8]} 17. Nde5 {[%clk 0:02:53.8]} 17... cxd4 {[%clk 0:01:44.7]} 18. Nc6
{[%clk 0:02:53]} 18... Re8 {[%clk 0:01:46]} 19. Rxd4 {[%clk 0:02:41]} 19... Nc5
{[%clk 0:01:40.2]} 20. Rh4 {[%clk 0:02:35.2]} 20... Qd5 {[%clk 0:01:39.5]} 21.
Nfd4 {[%clk 0:02:19.4]} 21... Bf8 {[%clk 0:01:35]} 22. Qf3 {[%clk 0:02:17.4]}
22... Nd3 {[%clk 0:01:13.5]} 23. e4 {[%clk 0:02:08.1]} 23... Qc4 {[%clk
0:01:01.6]} 24. b3 {[%clk 0:01:57.4]} 24... Nxe1 {[%clk 0:01:02.6]} 25. Rxe1
{[%clk 0:01:56]} 25... Qc5 {[%clk 0:01:01.3]} 26. e5 {[%clk 0:01:49.7]} 26...
Nd5 {[%clk 0:01:02.4]} 27. g3 {[%clk 0:01:41.1]} 27... Rac8 {[%clk 0:00:56.6]}
28. Ree4 {[%clk 0:01:39]} 28... Rxc6 {[%clk 0:00:45.3]} 29. Nxc6 {[%clk
0:01:39.5]} 29... Qxc6 {[%clk 0:00:47.2]} 30. Rxh7 {[%clk 0:01:31.9]} 30... Kxh7
{[%clk 0:00:35.8]} 31. Qxf7 {[%clk 0:01:32.4]} 31... Be7 {[%clk 0:00:30.5]} 32.
Rg4 {[%clk 0:01:33.1]} 32... Bg5 {[%clk 0:00:23.8]} 33. Rxg5 {[%clk 0:01:06.7]}
33... Qc1+ {[%clk 0:00:24.3]} 34. Kg2 {[%clk 0:01:07.9]} 34... Qxg5 {[%clk
0:00:26.2]} 35. Qxe8 {[%clk 0:01:09.2]} 35... Qxe5 {[%clk 0:00:27.2]} 36. h4
{[%clk 0:01:07.2]} 36... Nf6 {[%clk 0:00:27.2]} 37. Qa8 {[%clk 0:01:02.9]} 37...
Kg6 {[%clk 0:00:23.6]} 38. f3 {[%clk 0:01:01.7]} 38... Qb2+ {[%clk 0:00:24.3]}
39. Kh3 {[%clk 0:01:02.4]} 39... Qxb3 {[%clk 0:00:26.2]} 40. g4 {[%clk
0:01:03.3]} 40... Qd5 {[%clk 0:00:27.6]} 41. h5+ {[%clk 0:01:03.5]} 41... Kg5
{[%clk 0:00:28.9]} 0-1

[Event "*** Titled Tuesday 3|2 Blitz"]
[Site "Chess.com"]
[Date "2015.03.03"]
[Round "2"]
[White "Yaacovn"]
[Black "biostatistician"]
[Result "0-1"]
[WhiteElo "2546"]
[BlackElo "2304"]
[TimeControl "180+2"]
[EndTime "11:21:07 PST"]
[Termination "biostatistician won by resignation"]

1. d4 {[%clk 0:02:53.4]} 1... Nf6 {[%clk 0:02:58.6]} 2. Nf3 {[%clk 0:02:54.7]}
2... g6 {[%clk 0:03:00.1]} 3. c4 {[%clk 0:02:54.3]} 3... Bg7 {[%clk 0:03:01.6]}
4. Nc3 {[%clk 0:02:55.4]} 4... O-O {[%clk 0:03:03.2]} 5. g3 {[%clk 0:02:56.6]}
5... b6 {[%clk 0:03:04.3]} 6. Bg2 {[%clk 0:02:55.7]} 6... Bb7 {[%clk 0:03:05.5]}
7. O-O {[%clk 0:02:56.7]} 7... Ne4 {[%clk 0:03:06.7]} 8. Bd2 {[%clk 0:02:56.2]}
8... Nxd2 {[%clk 0:03:06.8]} 9. Qxd2 {[%clk 0:02:58.1]} 9... e6 {[%clk 0:03:06]}
10. d5 {[%clk 0:02:58.8]} 10... Na6 {[%clk 0:03:04.2]} 11. Nd4 {[%clk 0:03:00]}
11... Qc8 {[%clk 0:02:50.8]} 12. Rac1 {[%clk 0:02:20.2]} 12... e5 {[%clk
0:02:47.2]} 13. Ndb5 {[%clk 0:02:21.1]} 13... d6 {[%clk 0:02:46.2]} 14. e4
{[%clk 0:02:04]} 14... f5 {[%clk 0:02:40.9]} 15. exf5 {[%clk 0:02:05.5]} 15...
gxf5 {[%clk 0:02:40.6]} 16. f4 {[%clk 0:02:07]} 16... Nc5 {[%clk 0:02:31.7]} 17.
fxe5 {[%clk 0:02:04.9]} 17... dxe5 {[%clk 0:02:31.8]} 18. d6 {[%clk 0:02:06.3]}
18... Bxg2 {[%clk 0:02:28.7]} 19. Qxg2 {[%clk 0:02:07.5]} 19... cxd6 {[%clk
0:02:28.5]} 20. Nxd6 {[%clk 0:02:08]} 20... Qe6 {[%clk 0:02:26.6]} 21. Rcd1
{[%clk 0:02:08.7]} 21... e4 {[%clk 0:02:20.1]} 22. Ncb5 {[%clk 0:02:08.8]} 22...
Nd3 {[%clk 0:02:06.6]} 23. Qe2 {[%clk 0:01:55.1]} 23... Qe5 {[%clk 0:01:53.6]}
24. Nb7 {[%clk 0:01:06.6]} 24... Rab8 {[%clk 0:01:22.6]} 25. N5d6 {[%clk
0:01:06.9]} 25... Qxb2 {[%clk 0:01:04.8]} 26. Qxb2 {[%clk 0:01:02.7]} 26... Bxb2
{[%clk 0:01:01.5]} 27. g4 {[%clk 0:00:46.1]} 27... Bd4+ {[%clk 0:00:17.7]} 28.
Kg2 {[%clk 0:00:46.9]} 28... Be5 {[%clk 0:00:13.9]} 29. gxf5 {[%clk 0:00:44]}
29... Nf4+ {[%clk 0:00:14.2]} 30. Kf2 {[%clk 0:00:37.9]} 30... Rf6 {[%clk
0:00:12.8]} 31. Ke3 {[%clk 0:00:38.6]} 31... Nd3 {[%clk 0:00:12.3]} 32. Kxe4
{[%clk 0:00:35.3]} 32... Bxd6 {[%clk 0:00:13.3]} 33. Nxd6 {[%clk 0:00:10.6]}
33... Rxd6 {[%clk 0:00:15.2]} 34. f6 {[%clk 0:00:10.6]} 34... Nf2+ {[%clk
0:00:13.7]} 35. Ke5 {[%clk 0:00:08.9]} 35... Rxd1 {[%clk 0:00:14.8]} 36. Rxf2
{[%clk 0:00:10.2]} 36... Kf7 {[%clk 0:00:16]} 37. Rg2 {[%clk 0:00:11.1]} 37...
Re8+ {[%clk 0:00:16.9]} 38. Kf5 {[%clk 0:00:12.3]} 38... Rf1+ {[%clk 0:00:17.3]}
0-1

[Event "*** Titled Tuesday 3|2 Blitz"]
[Site "Chess.com"]
[Date "2015.03.03"]
[Round "2"]
[White "promen1999"]
[Black "alturas_pacificas"]
[Result "1-0"]
[WhiteElo "2238"]
[BlackElo "2062"]
[TimeControl "180+2"]
[EndTime "11:21:16 PST"]
[Termination "promen1999 won by resignation"]

1. d4 {[%clk 0:02:56]} 1... d5 {[%clk 0:02:58.2]} 2. c4 {[%clk 0:02:56.4]} 2...
c6 {[%clk 0:02:57.8]} 3. Nf3 {[%clk 0:02:57.5]} 3... Nf6 {[%clk 0:02:57.4]} 4.
Nc3 {[%clk 0:02:58.7]} 4... e6 {[%clk 0:02:58.6]} 5. e3 {[%clk 0:02:58.7]} 5...
Nbd7 {[%clk 0:02:57.4]} 6. Qc2 {[%clk 0:03:00.2]} 6... Be7 {[%clk 0:02:51.8]} 7.
Bd3 {[%clk 0:03:00.2]} 7... dxc4 {[%clk 0:02:48.7]} 8. Bxc4 {[%clk 0:03:00.8]}
8... b5 {[%clk 0:02:49.3]} 9. Bd3 {[%clk 0:03:01.5]} 9... Bb7 {[%clk 0:02:50.8]}
10. O-O {[%clk 0:03:02]} 10... O-O {[%clk 0:02:50.6]} 11. e4 {[%clk 0:03:03]}
11... b4 {[%clk 0:02:50.5]} 12. Na4 {[%clk 0:03:02.5]} 12... Rc8 {[%clk
0:02:46.7]} 13. e5 {[%clk 0:03:02.7]} 13... Nd5 {[%clk 0:02:46.4]} 14. Bxh7+
{[%clk 0:03:03.4]} 14... Kh8 {[%clk 0:02:42.7]} 15. Be4 {[%clk 0:02:59.6]} 15...
c5 {[%clk 0:02:41.3]} 16. Qe2 {[%clk 0:02:50.1]} 16... cxd4 {[%clk 0:02:37.4]}
17. Nxd4 {[%clk 0:02:43.5]} 17... g6 {[%clk 0:02:28.2]} 18. Nxe6 {[%clk
0:02:40.4]} 18... fxe6 {[%clk 0:02:23.1]} 19. Bxg6 {[%clk 0:02:39.3]} 19... Kg7
{[%clk 0:02:17.9]} 20. Be4 {[%clk 0:02:20.9]} 20... Nxe5 {[%clk 0:02:03.3]} 21.
Qh5 {[%clk 0:02:20.7]} 21... Nf6 {[%clk 0:01:52.2]} 22. Bh6+ {[%clk 0:02:10.6]}
22... Kh8 {[%clk 0:01:53.3]} 23. Qxe5 {[%clk 0:01:41.3]} 23... Bxe4 {[%clk
0:01:50.4]} 24. Bxf8 {[%clk 0:01:42.2]} 24... Qxf8 {[%clk 0:01:46]} 25. Rfe1
{[%clk 0:01:40.6]} 25... Bd5 {[%clk 0:01:42]} 26. Re3 {[%clk 0:01:37.8]} 26...
Qf7 {[%clk 0:01:07.1]} 27. Rd1 {[%clk 0:01:30.2]} 27... Kg8 {[%clk 0:01:04.2]}
28. h3 {[%clk 0:01:28.6]} 28... Rc2 {[%clk 0:00:45]} 29. Rg3+ {[%clk 0:01:16.2]}
29... Kf8 {[%clk 0:00:42.7]} 30. Qb8+ {[%clk 0:01:13.5]} 30... Ne8 {[%clk
0:00:44]} 31. Qxa7 {[%clk 0:01:13]} 31... Bc5 {[%clk 0:00:34.7]} 32. Qxf7+
{[%clk 0:01:12.5]} 32... Kxf7 {[%clk 0:00:36]} 33. Nxc5 {[%clk 0:01:13.8]} 33...
Rxc5 {[%clk 0:00:37.9]} 34. Rd4 {[%clk 0:01:11.8]} 34... Rc1+ {[%clk 0:00:32.2]}
35. Kh2 {[%clk 0:01:13]} 35... Rc2 {[%clk 0:00:33.5]} 36. Rxb4 {[%clk
0:01:12.6]} 36... Rxf2 {[%clk 0:00:34]} 37. a4 {[%clk 0:01:11.7]} 37... Nf6
{[%clk 0:00:32.8]} 38. a5 {[%clk 0:01:12.1]} 38... Ne4 {[%clk 0:00:32.4]} 39.
Rg4 {[%clk 0:01:12.4]} 39... Nd2 {[%clk 0:00:24.9]} 40. Rgf4+ {[%clk 0:01:12.7]}
40... Rxf4 {[%clk 0:00:24.8]} 41. Rxf4+ {[%clk 0:01:13.6]} 41... Ke7 {[%clk
0:00:24.1]} 42. h4 {[%clk 0:01:11.8]} 42... e5 {[%clk 0:00:24.4]} 43. Rf2 {[%clk
0:01:07.9]} 43... Nc4 {[%clk 0:00:24.4]} 44. a6 {[%clk 0:01:08.7]} 44... e4
{[%clk 0:00:25.6]} 45. h5 {[%clk 0:01:07.7]} 45... e3 {[%clk 0:00:26.5]} 46. Re2
{[%clk 0:01:08.7]} 46... Kf6 {[%clk 0:00:20.7]} 47. b3 {[%clk 0:01:08.8]} 47...
Nb6 {[%clk 0:00:21]} 48. Rxe3 {[%clk 0:01:09.6]} 48... Ba8 {[%clk 0:00:19.6]}
49. g4 {[%clk 0:01:08.4]} 49... Kg5 {[%clk 0:00:20.3]} 50. Kg3 {[%clk
0:01:09.3]} 50... Nd5 {[%clk 0:00:17.8]} 51. Re5+ {[%clk 0:01:10.8]} 51... Kh6
{[%clk 0:00:19.2]} 52. Rxd5 {[%clk 0:01:12.4]} 52... Bxd5 {[%clk 0:00:19.6]} 53.
b4 {[%clk 0:01:14.1]} 1-0

[Event "*** Titled Tuesday 3|2 Blitz"]
[Site "Chess.com"]
[Date "2015.03.03"]
[Round "2"]
[White "megarompa"]
[Black "zmaj23"]
[Result "1/2-1/2"]
[WhiteElo "2634"]
[BlackElo "2309"]
[TimeControl "180+2"]
[EndTime "11:21:57 PST"]
[Termination "Game drawn - insufficient material"]

1. d4 {[%clk 0:03:00]} 1... c5 {[%clk 0:02:58]} 2. d5 {[%clk 0:03:00.4]} 2... f5
{[%clk 0:02:58.6]} 3. e4 {[%clk 0:02:55.2]} 3... fxe4 {[%clk 0:02:47.5]} 4. Nc3
{[%clk 0:02:56.1]} 4... d6 {[%clk 0:02:48.3]} 5. Nxe4 {[%clk 0:02:49.8]} 5...
Bf5 {[%clk 0:02:49.2]} 6. Ng3 {[%clk 0:02:49.3]} 6... Bg6 {[%clk 0:02:41.5]} 7.
Nf3 {[%clk 0:02:50]} 7... Nd7 {[%clk 0:02:42.2]} 8. Bd3 {[%clk 0:02:47]} 8...
Bxd3 {[%clk 0:02:39.1]} 9. Qxd3 {[%clk 0:02:48.9]} 9... Ngf6 {[%clk 0:02:38.9]}
10. O-O {[%clk 0:02:49.3]} 10... g6 {[%clk 0:02:36.8]} 11. h4 {[%clk 0:02:45.6]}
11... Bg7 {[%clk 0:02:34.7]} 12. h5 {[%clk 0:02:46.9]} 12... Ng4 {[%clk
0:02:14.6]} 13. hxg6 {[%clk 0:02:37.7]} 13... Nde5 {[%clk 0:02:13.2]} 14. Qb5+
{[%clk 0:02:18.6]} 14... Qd7 {[%clk 0:02:10.7]} 15. Qxd7+ {[%clk 0:02:19.6]}
15... Kxd7 {[%clk 0:02:11.8]} 16. Nf5 {[%clk 0:02:17.6]} 16... Bf6 {[%clk
0:02:04.7]} 17. g7 {[%clk 0:02:14.1]} 17... Rhg8 {[%clk 0:02:04.1]} 18. Bg5
{[%clk 0:01:56.5]} 18... e6 {[%clk 0:01:48.6]} 19. Nxe5+ {[%clk 0:01:53.7]}
19... Bxe5 {[%clk 0:01:45.3]} 20. dxe6+ {[%clk 0:01:52.4]} 20... Kxe6 {[%clk
0:01:47.2]} 21. Nh6 {[%clk 0:01:50.6]} 21... Rxg7 {[%clk 0:01:34.9]} 22. Nxg4
{[%clk 0:01:50.9]} 22... Rxg5 {[%clk 0:01:35.6]} 23. Nxe5 {[%clk 0:01:43.2]}
23... dxe5 {[%clk 0:01:30.8]} 24. f4 {[%clk 0:01:38.4]} 24... exf4 {[%clk
0:01:32.7]} 25. Rxf4 {[%clk 0:01:36.9]} 25... Rag8 {[%clk 0:01:33.6]} 26. Re1+
{[%clk 0:01:37.8]} 26... Kd6 {[%clk 0:01:23.8]} 27. Re2 {[%clk 0:01:28.5]} 27...
R8g6 {[%clk 0:01:17]} 28. a4 {[%clk 0:01:23.6]} 28... Rg4 {[%clk 0:01:10.7]} 29.
Rd2+ {[%clk 0:01:24.6]} 29... Kc6 {[%clk 0:01:09.5]} 30. Rdf2 {[%clk 0:01:21.9]}
30... Rxf4 {[%clk 0:01:01.4]} 31. Rxf4 {[%clk 0:01:23.8]} 31... Rd6 {[%clk
0:01:00.4]} 32. c3 {[%clk 0:01:21.9]} 32... Rd1+ {[%clk 0:00:58.6]} 33. Kh2
{[%clk 0:01:19.9]} 33... Rd2 {[%clk 0:00:58.7]} 34. b4 {[%clk 0:01:20.8]} 34...
b6 {[%clk 0:00:56.3]} 35. Rf6+ {[%clk 0:01:16.3]} 35... Rd6 {[%clk 0:00:54.2]}
36. Rf5 {[%clk 0:01:14.9]} 36... Rd3 {[%clk 0:00:49.4]} 37. Rh5 {[%clk
0:01:06.6]} 37... Rxc3 {[%clk 0:00:44.8]} 38. b5+ {[%clk 0:01:08]} 38... Kd6
{[%clk 0:00:42.1]} 39. Rh6+ {[%clk 0:01:09.2]} 39... Kd5 {[%clk 0:00:37.2]} 40.
Rxh7 {[%clk 0:01:10.6]} 40... c4 {[%clk 0:00:36.3]} 41. Rxa7 {[%clk 0:01:11.5]}
41... Kc5 {[%clk 0:00:36.5]} 42. Rc7+ {[%clk 0:01:09.5]} 42... Kb4 {[%clk
0:00:35.3]} 43. Rc6 {[%clk 0:01:11]} 43... Kxa4 {[%clk 0:00:33]} 44. Rxb6 {[%clk
0:01:12.4]} 44... Rd3 {[%clk 0:00:32]} 45. g4 {[%clk 0:01:10.1]} 45... c3 {[%clk
0:00:33.1]} 46. g5 {[%clk 0:01:08.3]} 46... c2 {[%clk 0:00:31.4]} 47. Rc6 {[%clk
0:01:06.9]} 47... Kb3 {[%clk 0:00:30.1]} 48. b6 {[%clk 0:01:08.4]} 48... Rd7
{[%clk 0:00:23.6]} 49. g6 {[%clk 0:01:06.5]} 49... Kb2 {[%clk 0:00:18.1]} 50.
Kg3 {[%clk 0:01:07.6]} 50... c1=Q {[%clk 0:00:19.1]} 51. Rxc1 {[%clk 0:01:04.2]}
51... Kxc1 {[%clk 0:00:21]} 52. Kg4 {[%clk 0:01:06.1]} 52... Rd6 {[%clk
0:00:11.6]} 53. Kf5 {[%clk 0:01:02]} 53... Rxb6 {[%clk 0:00:11.3]} 54. g7 {[%clk
0:01:03.6]} 54... Rb8 {[%clk 0:00:12.5]} 55. Kg6 {[%clk 0:01:02.6]} 55... Kd2
{[%clk 0:00:13.5]} 56. Kh7 {[%clk 0:01:04.5]} 56... Ke3 {[%clk 0:00:14.6]} 57.
g8=Q {[%clk 0:01:04.6]} 57... Rxg8 {[%clk 0:00:15.4]} 58. Kxg8 {[%clk
0:01:06.3]} 1/2-1/2